bitfinex/quotes_BTCUSD_20251009
["timestamp","ask_amount","ask_price","bid_price","bid_amount"]
[1760025187763,0.64678413,121060.0,121050.0,0.06519687]
[1760025187938,0.56678733,121060.0,121050.0,0.06519687]
[1760025188174,0.56678733,121060.0,121050.0,0.00206687]
[1760025188391,0.65924733,121060.0,121050.0,0.00206687]
[1760025188806,0.65924733,121060.0,121050.0,0.06519687]
[1760025188807,0.33130733,121060.0,121050.0,0.06519687]
[1760025189012,0.48656733,121060.0,121050.0,0.15793687]
[1760025189399,0.25107368,121070.0,121060.0,0.16520733]
[1760025189612,0.25107368,121070.0,121060.0,0.19949]
[1760025189813,0.48655368,121070.0,121060.0,0.36469733]
[1760025190025,0.25107368,121070.0,121060.0,0.19949]
[1760025190240,0.51836368,121070.0,121060.0,0.10946]
[1760025190664,0.48655368,121070.0,121060.0,0.10946]
[1760025190812,0.64662048,121070.0,121060.0,0.10946]
[1760025191013,0.48655368,121070.0,121060.0,0.10946]
[1760025191220,0.48655368,121070.0,121060.0,0.36469733]
[1760025192494,0.16519368,121070.0,121060.0,0.36469733]
[1760025192691,0.08588,121080.0,121070.0,0.16519368]
[1760025192907,0.26783074,121080.0,121070.0,0.36468368]
[1760025193169,0.25106004,121080.0,121070.0,0.36468368]
[1760025193383,0.08588,121080.0,121070.0,0.36468368]
[1760025193594,0.50877254,121090.0,121080.0,0.16518004]
[1760025193798,0.74425254,121090.0,121080.0,0.36467004]
[1760025195108,0.74425254,121090.0,121080.0,0.19949]
[1760025195335,0.50877254,121090.0,121080.0,0.19949]
[1760025195555,0.74425254,121090.0,121080.0,0.10946]
[1760025195770,0.74425254,121090.0,121080.0,0.36467004]
[1760025196213,0.53679254,121090.0,121080.0,0.10946]
[1760025196643,0.77227254,121090.0,121080.0,0.10946]
[1760025196852,0.74425254,121090.0,121080.0,0.10946]
[1760025197059,0.77296254,121090.0,121080.0,0.10946]
[1760025197284,0.50877254,121090.0,121080.0,0.36467004]
[1760025197490,0.74425254,121090.0,121080.0,0.36467004]
[1760025200596,0.74425254,121090.0,121080.0,0.36518663]
[1760025201477,0.74421254,121090.0,121080.0,0.36518663]
[1760025204099,0.4006064,121090.0,121080.0,0.36518663]
[1760025204316,0.16519276,121100.0,121090.0,0.1651664]
[1760025204525,0.40063276,121100.0,121090.0,0.3203264]
[1760025204744,4e-05,121100.0,121090.0,0.3203264]
[1760025204977,0.23548,121100.0,121090.0,0.3203264]
[1760025205192,0.40063276,121100.0,121090.0,0.3203264]
[1760025205463,0.45734801,121100.0,121090.0,0.3203264]
[1760025205676,0.40063276,121100.0,121090.0,0.3203264]
[1760025206995,0.40063276,121100.0,121090.0,0.3223264]
[1760025207622,0.16519276,121100.0,121090.0,0.3223264]
[1760025207801,0.40059276,121100.0,121090.0,0.3223264]
[1760025208224,0.16519276,121100.0,121090.0,0.3223264]
[1760025208396,0.40059276,121100.0,121090.0,0.3223264]
[1760025209671,4e-05,121100.0,121090.0,0.3223264]
[1760025209812,0.2522107,121100.0,121090.0,0.3223264]
[1760025210023,0.23544,121100.0,121090.0,0.3223264]
[1760025211340,0.16519276,121100.0,121090.0,0.3223264]
[1760025211714,0.40059276,121100.0,121090.0,0.3223264]
[1760025212455,0.23544,121100.0,121090.0,0.3223264]
[1760025212606,0.40059276,121100.0,121090.0,0.3223264]
[1760025213165,0.45726401,121100.0,121090.0,0.15716]
[1760025213807,0.40055276,121100.0,121090.0,0.15716]
[1760025215581,0.40055276,121100.0,121090.0,0.3223264]
[1760025215770,4e-05,121100.0,121090.0,0.3223264]
[1760025215982,0.2354,121100.0,121090.0,0.3223264]
[1760025216389,0.40055276,121100.0,121090.0,0.3223264]
[1760025217465,4e-05,121100.0,121090.0,0.3223264]
[1760025217685,0.2354,121100.0,121090.0,0.3223264]
[1760025218131,0.40055276,121100.0,121090.0,0.3223264]
[1760025218560,0.2354,121100.0,121090.0,0.3223264]
[1760025218786,4e-05,121100.0,121090.0,0.3223264]
[1760025219231,4e-05,121100.0,121090.0,0.40544846]
[1760025219669,4e-05,121100.0,121090.0,0.64080846]
[1760025219888,4e-05,121100.0,121090.0,0.40544846]
[1760025220106,4e-05,121100.0,121090.0,0.77560036]
[1760025220330,4e-05,121100.0,121090.0,1.03396035]
[1760025220547,4e-05,121100.0,121090.0,1.13496034]
[1760025220806,4e-05,121100.0,121090.0,1.13596034]
[1760025221031,4e-05,121100.0,121090.0,1.13496034]
[1760025221259,4e-05,121100.0,121090.0,1.13696034]
[1760025221679,4e-05,121100.0,121090.0,0.98744034]
[1760025221894,4e-05,121100.0,121090.0,1.22176034]
[1760025222075,4e-05,121100.0,121090.0,0.90060034]
[1760025222286,4e-05,121100.0,121090.0,1.22376034]
[1760025223483,1e-08,121110.0,121100.0,0.19015275]
[1760025223692,1e-08,121110.0,121100.0,0.65067481]
[1760025223900,1e-08,121110.0,121100.0,0.47754481]
[1760025224121,1e-08,121110.0,121100.0,0.82885671]
[1760025224769,1e-08,121110.0,121100.0,0.82985671]
[1760025225406,1e-08,121110.0,121100.0,0.83085671]
[1760025225864,1e-08,121110.0,121100.0,0.59553671]
[1760025226080,1e-08,121110.0,121100.0,0.83085671]
[1760025226503,1e-08,121110.0,121100.0,0.57060792]
[1760025226722,1e-08,121110.0,121100.0,0.89172792]
[1760025226940,0.13944729,121150.0,121130.0,0.16511186]
[1760025227171,0.16510004,121140.0,121130.0,0.16511186]
[1760025227380,0.16510004,121140.0,121130.0,0.20944186]
[1760025227560,0.16510004,121140.0,121130.0,0.36400186]
[1760025227703,0.17335495,121140.0,121130.0,0.36400186]
[1760025229827,0.36507928,121150.0,121130.0,0.36400186]
[1760025230023,0.12979928,121150.0,121130.0,0.26992186]
[1760025230229,0.38184998,121150.0,121140.0,0.09408]
[1760025230465,0.36507928,121150.0,121140.0,0.06048]
[1760025230847,0.36507928,121150.0,121140.0,0.15456]
[1760025231414,0.12979928,121150.0,121140.0,0.15456]
[1760025231621,0.38184998,121150.0,121140.0,0.15456]
[1760025231800,0.12979928,121150.0,121140.0,0.15456]
[1760025232229,0.36507928,121150.0,121140.0,0.15456]
[1760025233316,0.36503928,121150.0,121140.0,0.15456]
[1760025233727,0.36710421,121150.0,121140.0,0.15456]
[1760025234318,0.36710421,121150.0,121140.0,0.06048]
[1760025234795,0.36710421,121150.0,121140.0,0.15456]
[1760025237955,0.13186421,121150.0,121140.0,0.15456]
[1760025238176,0.38387491,121150.0,121140.0,0.06048]
[1760025238377,0.36710421,121150.0,121140.0,0.06048]
[1760025238600,0.36710421,121150.0,121140.0,0.15456]
[1760025240486,0.36710421,121150.0,121140.0,0.31965823]
[1760025241154,0.36710421,121150.0,121140.0,0.15456]
[1760025241364,0.13186421,121150.0,121140.0,0.15456]
[1760025241577,0.38387491,121150.0,121140.0,0.15456]
[1760025241783,0.36710421,121150.0,121140.0,0.15456]
[1760025242012,0.36710421,121150.0,121140.0,0.31965823]
[1760025242228,0.36710421,121150.0,121140.0,0.06048]
[1760025242464,0.00221692,121150.0,121140.0,0.31965823]
[1760025242673,0.16730152,121150.0,121140.0,0.15456]
[1760025242888,0.41927222,121150.0,121140.0,0.31965823]
[1760025243097,0.40250152,121150.0,121140.0,0.31965823]
[1760025247843,0.40250152,121150.0,121140.0,0.15456]
[1760025248259,0.40250152,121150.0,121140.0,0.31965823]
[1760025248979,0.40250152,121150.0,121140.0,0.15456]
[1760025250178,0.16509823,121140.0,121130.0,0.13833]
[1760025250398,0.40029823,121140.0,121130.0,0.04433]
[1760025250611,0.16511186,121130.0,121120.0,0.04433]
[1760025250824,0.16511186,121130.0,121110.0,0.04433]
[1760025250825,0.16512549,121120.0,121110.0,0.04433]
[1760025251044,0.16512549,121120.0,121110.0,0.10513]
[1760025251264,0.19050549,121120.0,121110.0,0.04433]
[1760025251518,0.16515276,121100.0,121090.0,0.0457099]
[1760025251731,0.16513912,121110.0,121100.0,0.03289]
[1760025251943,0.40033912,121110.0,121100.0,0.03289]
[1760025252150,0.40033912,121110.0,121100.0,0.18769]
[1760025252374,0.22264314,121140.0,121120.0,0.16512549]
[1760025252580,0.25919314,121140.0,121130.0,0.36424186]
[1760025252802,0.49451865,121140.0,121130.0,0.36424186]
[1760025253433,0.25931865,121140.0,121130.0,0.36424186]
[1760025253666,0.49451865,121140.0,121130.0,0.36424186]
[1760025253876,0.49451865,121140.0,121130.0,0.19913]
[1760025254094,0.25931865,121140.0,121130.0,0.10513]
[1760025254307,0.49451865,121140.0,121130.0,0.10513]
[1760025254508,0.25931865,121140.0,121130.0,0.10513]
[1760025254718,0.49606865,121140.0,121130.0,0.10513]
[1760025254932,0.49451865,121140.0,121130.0,0.10513]
[1760025255142,0.17347865,121140.0,121130.0,0.19913]
[1760025255350,0.40867865,121140.0,121130.0,0.36424186]
[1760025255774,0.41022748,121140.0,121130.0,0.36424186]
[1760025256219,0.17502748,121140.0,121130.0,0.36424186]
[1760025256423,0.41022748,121140.0,121130.0,0.36424186]
[1760025257296,0.17502748,121140.0,121130.0,0.36424186]
[1760025257525,0.00167434,121140.0,121130.0,0.36424186]
[1760025257730,0.23687434,121140.0,121130.0,0.36424186]
[1760025258580,0.00167434,121140.0,121130.0,0.37421805]
[1760025258799,0.23687434,121140.0,121130.0,0.37421805]
[1760025259825,0.23687434,121140.0,121130.0,0.37521805]
[1760025260208,0.23687434,121140.0,121130.0,0.37421805]
[1760025260414,0.23687434,121140.0,121130.0,0.36424186]
[1760025260631,0.00167434,121140.0,121130.0,0.36524186]
[1760025260835,0.23683434,121140.0,121130.0,0.36524186]
[1760025261077,0.00167434,121140.0,121130.0,0.36524186]
[1760025261475,0.00167434,121140.0,121130.0,0.36424186]
[1760025261686,0.16508524,121150.0,121140.0,0.16509734]
[1760025261887,0.16508524,121150.0,121140.0,0.35278734]
[1760025262095,0.40024524,121150.0,121140.0,0.35278734]
[1760025263613,0.1863314,121160.0,121140.0,0.35278734]
[1760025263901,0.4170153,121150.0,121140.0,0.35278734]
[1760025264126,0.4002446,121150.0,121140.0,0.35278734]
[1760025264356,0.1863314,121160.0,121140.0,0.35278734]
[1760025264582,0.08584,121160.0,121150.0,0.2976946]
[1760025264801,0.48607098,121160.0,121150.0,0.3584946]
[1760025266523,0.26530876,121170.0,121150.0,0.3584946]
[1760025266808,0.1002,121170.0,121160.0,0.13261]
[1760025267023,0.1002,121170.0,121160.0,0.44160304]
[1760025268375,0.1002,121170.0,121160.0,0.44260304]
[1760025268610,0.1002,121170.0,121160.0,0.74068026]
[1760025268840,0.10174825,121170.0,121160.0,0.74068026]
[1760025269375,0.10174825,121170.0,121160.0,0.74168026]
[1760025269822,0.0002,121180.0,121170.0,0.16505735]
[1760025270043,0.00035203,121180.0,121170.0,0.38650941]
[1760025270262,0.00035203,121180.0,121170.0,0.68246941]
[1760025270485,0.00086801,121180.0,121170.0,0.68246941]
[1760025270731,0.00086801,121180.0,121170.0,0.68242941]
[1760025271424,0.00086801,121180.0,121170.0,0.68442941]
[1760025271667,0.00086801,121180.0,121170.0,0.44830941]
[1760025271923,0.00086801,121180.0,121170.0,0.68242941]
[1760025272151,0.00086801,121180.0,121170.0,0.68442941]
[1760025272587,0.00086801,121180.0,121170.0,0.78930941]
[1760025272822,0.00086801,121180.0,121170.0,1.02442941]
[1760025273029,0.00086801,121180.0,121170.0,0.78930941]
[1760025273303,0.00086801,121180.0,121170.0,1.05458131]
[1760025273525,0.00086801,121180.0,121170.0,1.0795813]
[1760025273768,0.0002,121190.0,121180.0,0.56019562]
[1760025273973,0.0002,121190.0,121180.0,0.77020768]
[1760025274204,0.0002,121190.0,121180.0,1.06612768]
[1760025274419,0.0002,121190.0,121180.0,0.91680768]
[1760025274601,0.0002,121190.0,121180.0,1.15192768]
[1760025274840,0.0002,121190.0,121180.0,0.83100768]
[1760025275050,0.0002,121190.0,121180.0,0.80700769]
[1760025275262,0.0002,121190.0,121180.0,0.77685579]
[1760025275513,0.0002,121190.0,121180.0,1.01193579]
[1760025275741,0.0002,121190.0,121180.0,1.02296774]
[1760025276201,0.0002,121190.0,121180.0,0.84203963]
[1760025276410,0.16497619,121230.0,121210.0,0.16500288]
[1760025276616,0.17797741,121230.0,121220.0,0.0608]
[1760025276843,0.16776284,121230.0,121220.0,0.36584927]
[1760025277074,0.16776284,121230.0,121220.0,0.26372133]
[1760025277294,0.16776284,121230.0,121220.0,0.20086]
[1760025277503,0.16776284,121230.0,121220.0,0.36584927]
[1760025277952,0.22332162,121230.0,121220.0,0.10686]
[1760025278125,0.17373162,121230.0,121220.0,0.20086]
[1760025278777,0.21970162,121230.0,121220.0,0.10686]
[1760025278995,0.17373162,121230.0,121220.0,0.36584927]
[1760025279413,0.00875543,121230.0,121220.0,0.36584927]
[1760025279609,0.19050179,121230.0,121220.0,0.36584927]
[1760025279822,0.17630982,121230.0,121220.0,0.36584927]
[1760025280023,0.19308052,121230.0,121220.0,0.20086]
[1760025280231,0.19308052,121230.0,121220.0,0.26205732]
[1760025280433,0.19308052,121230.0,121220.0,0.20086]
[1760025280639,0.19308052,121230.0,121220.0,0.36584927]
[1760025280784,0.17630982,121230.0,121220.0,0.36584927]
[1760025281020,0.17630982,121230.0,121220.0,0.20086]
[1760025281825,0.17630982,121230.0,121220.0,0.36584927]
[1760025282240,0.16498927,121220.0,121210.0,0.21106225]
[1760025282536,0.16498927,121220.0,121210.0,0.20079]
[1760025282789,0.16498927,121220.0,121210.0,0.36579288]
[1760025283238,0.04672,121230.0,121220.0,0.16498927]
[1760025283444,0.23504,121230.0,121220.0,0.36504927]
[1760025284068,0.17495489,121240.0,121220.0,0.36504927]
[1760025284275,0.40001566,121230.0,121220.0,0.36504927]
[1760025284556,0.23504,121230.0,121220.0,0.36504927]
[1760025284773,0.40001566,121230.0,121220.0,0.36504927]
[1760025285452,0.29331888,121240.0,121230.0,0.16497566]
[1760025285693,0.50348669,121240.0,121230.0,0.38015566]
[1760025286769,0.50448669,121240.0,121230.0,0.38015566]
[1760025287236,0.50548669,121240.0,121230.0,0.38015566]
[1760025287449,0.41972669,121240.0,121230.0,0.38015566]
[1760025287662,0.41972669,121240.0,121230.0,0.21518]
[1760025287915,0.41972669,121240.0,121220.0,0.21031927]
[1760025287916,0.16497566,121230.0,121220.0,0.21031927]
[1760025288401,0.17353204,121230.0,121220.0,0.27623927]
[1760025288878,0.22039204,121230.0,121220.0,0.27623927]
[1760025289105,0.00762638,121230.0,121220.0,0.37619927]
[1760025289331,0.02439708,121230.0,121220.0,0.37619927]
[1760025291265,0.18937274,121230.0,121220.0,0.37619927]
[1760025291471,0.26640204,121230.0,121220.0,0.27623927]
[1760025292221,0.00762638,121230.0,121220.0,0.27623927]
[1760025292436,0.02439708,121230.0,121220.0,0.37619927]
[1760025293278,0.00762638,121230.0,121220.0,0.37619927]
[1760025293481,0.01020511,121230.0,121220.0,0.37619927]
[1760025293691,0.24520511,121230.0,121220.0,0.37619927]
[1760025295068,0.01020511,121230.0,121220.0,0.37619927]
[1760025295269,0.00257873,121230.0,121220.0,0.37619927]
[1760025295477,0.0102343,121230.0,121220.0,0.37619927]
[1760025296154,0.00257873,121230.0,121220.0,0.61119927]
[1760025296747,0.00257873,121230.0,121220.0,0.37619927]
[1760025296947,0.00257873,121230.0,121220.0,0.62098355]
[1760025297153,0.35265347,121240.0,121230.0,0.16497566]
[1760025297354,0.36031534,121240.0,121230.0,0.38015566]
[1760025297932,0.00766187,121240.0,121230.0,0.38015566]
[1760025298137,0.26939947,121240.0,121230.0,0.38015566]
[1760025298346,0.25262877,121240.0,121230.0,0.38015566]
[1760025298554,0.01766877,121240.0,121230.0,0.38015566]
[1760025298734,0.25262877,121240.0,121230.0,0.38015566]
[1760025298941,0.00766187,121240.0,121230.0,0.38015566]
[1760025301295,0.00766187,121240.0,121230.0,0.46327772]
[1760025302136,0.00766187,121240.0,121230.0,0.69823772]
[1760025302360,0.01789232,121260.0,121230.0,0.69823772]
[1760025302361,0.01789232,121260.0,121250.0,0.16494845]
[1760025302560,0.02557309,121260.0,121250.0,0.21424845]
[1760025302772,0.00788077,121260.0,121250.0,0.38012845]
[1760025303404,0.0012,121260.0,121250.0,0.38012845]
[1760025303608,0.0022,121260.0,121250.0,0.38012845]
[1760025304246,0.0022,121260.0,121250.0,0.7587124]
[1760025304464,0.00374653,121260.0,121250.0,0.7587124]
[1760025304657,0.00274653,121260.0,121250.0,0.7587124]
[1760025304871,0.00174653,121260.0,121250.0,0.7587124]
[1760025307588,0.00174653,121260.0,121250.0,0.7586724]
[1760025308410,0.00174653,121260.0,121250.0,0.5237524]
[1760025308625,0.00174653,121260.0,121250.0,0.7586724]
[1760025308819,0.00174653,121260.0,121250.0,0.5237524]
[1760025309259,0.00174653,121260.0,121250.0,0.7586724]
[1760025309469,0.00174653,121260.0,121250.0,0.5237524]
[1760025309872,0.00174653,121260.0,121250.0,0.7586724]
[1760025310153,0.00174653,121260.0,121250.0,0.5237524]
[1760025310804,0.00174653,121260.0,121250.0,0.7586724]
[1760025312606,0.00174653,121260.0,121250.0,0.5237524]
[1760025316662,0.00174653,121260.0,121250.0,0.7586324]
[1760025316881,7e-05,121290.0,121250.0,1.12000679]
[1760025317098,7e-05,121290.0,121280.0,0.21251765]
[1760025317099,0.00022191,121290.0,121280.0,0.21251765]
[1760025317316,0.00022191,121290.0,121280.0,0.53055971]
[1760025317527,0.00022191,121290.0,121280.0,0.59474971]
[1760025317753,0.00022191,121290.0,121280.0,0.69348971]
[1760025319479,0.00022191,121290.0,121280.0,1.03348971]
[1760025319924,0.00022191,121290.0,121280.0,1.03360971]
[1760025320129,0.00022191,121290.0,121280.0,1.03356971]
[1760025320570,0.00022191,121290.0,121280.0,1.04332395]
[1760025321869,0.00022191,121290.0,121280.0,0.80832395]
[1760025322078,0.00022191,121290.0,121280.0,1.04332395]
[1760025322299,0.00022191,121290.0,121280.0,1.04328395]
[1760025322936,0.00176787,121290.0,121280.0,1.04328395]
[1760025323768,0.00176787,121290.0,121280.0,1.04324395]
[1760025323894,0.00176787,121290.0,121280.0,0.80832395]
[1760025324309,0.00176787,121290.0,121280.0,0.79856971]
[1760025324501,0.00176787,121290.0,121280.0,1.03348971]
[1760025324698,0.00176787,121290.0,121280.0,0.21054]
[1760025324907,0.00176787,121290.0,121280.0,0.37544765]
[1760025327187,0.16666192,121290.0,121280.0,0.37544765]
[1760025327813,0.16490765,121280.0,121270.0,0.14635]
[1760025328061,0.16490765,121280.0,121270.0,0.21054]
[1760025328279,0.16663765,121280.0,121270.0,0.27672125]
[1760025328491,0.16663765,121280.0,121270.0,0.1118]
[1760025329256,0.1764822,121280.0,121270.0,0.1118]
[1760025329467,0.1922222,121280.0,121270.0,0.1118]
[1760025330073,0.1922222,121280.0,121270.0,0.04761]
[1760025330275,0.16492125,121270.0,121260.0,0.04761]
[1760025330460,0.16492125,121270.0,121260.0,0.1118]
[1760025330882,0.40237125,121270.0,121260.0,0.1118]
[1760025331486,0.16753125,121270.0,121260.0,0.1118]
[1760025331686,0.40237125,121270.0,121260.0,0.1118]
[1760025331903,0.1747522,121280.0,121270.0,0.16492125]
[1760025332098,0.4953122,121280.0,121270.0,0.37546125]
[1760025332367,0.23484,121280.0,121270.0,0.37546125]
[1760025332797,0.18288536,121290.0,121270.0,0.37546125]
[1760025333040,0.41651835,121280.0,121270.0,0.37546125]
[1760025333209,0.40074765,121280.0,121270.0,0.37546125]
[1760025333419,0.23687072,121280.0,121270.0,0.37546125]
[1760025334228,0.00103072,121280.0,121270.0,0.37546125]
[1760025334493,0.23687072,121280.0,121270.0,0.37546125]
[1760025334697,0.00203072,121280.0,121270.0,0.37546125]
[1760025334835,0.23687072,121280.0,121270.0,0.37546125]
[1760025335275,0.00203072,121280.0,121270.0,0.37546125]
[1760025336238,0.00303072,121280.0,121270.0,0.37546125]
[1760025336440,0.01980142,121280.0,121270.0,0.37546125]
[1760025336650,0.42044907,121280.0,121270.0,0.27672125]
[1760025336851,0.40367837,121280.0,121270.0,0.27672125]
[1760025337259,0.40277837,121280.0,121270.0,0.37546125]
[1760025337605,0.48330396,121280.0,121270.0,0.1118]
[1760025337809,0.42091837,121280.0,121270.0,0.27672125]
[1760025338009,0.42091837,121280.0,121270.0,0.1118]
[1760025338252,0.01938072,121280.0,121270.0,0.27672125]
[1760025338404,0.00303072,121280.0,121270.0,0.37546125]
[1760025338904,0.23787072,121280.0,121270.0,0.37546125]
[1760025339976,0.40277837,121280.0,121270.0,0.37546125]
[1760025340178,0.16793837,121280.0,121270.0,0.21054]
[1760025340355,0.41623837,121280.0,121270.0,0.1118]
[1760025340562,0.51304837,121280.0,121260.0,0.30981485]
[1760025340875,0.18169195,121270.0,121260.0,0.21254485]
[1760025341038,0.40027665,121270.0,121260.0,0.21254485]
[1760025341237,0.40027665,121270.0,121260.0,0.27737485]
[1760025341444,0.40027665,121270.0,121260.0,0.37464485]
[1760025341725,0.2353554,121270.0,121260.0,0.37464485]
[1760025342959,0.40027665,121270.0,121260.0,0.37464485]
[1760025344680,0.40027665,121270.0,121260.0,0.27737485]
[1760025344837,0.40027665,121270.0,121260.0,0.36739485]
[1760025346211,0.40027665,121270.0,121260.0,0.27737485]
[1760025346402,0.40027665,121270.0,121260.0,0.36739485]
[1760025347235,0.40124665,121270.0,121260.0,0.27737485]
[1760025347448,0.40027665,121270.0,121260.0,0.27737485]
[1760025348079,0.40027665,121270.0,121260.0,0.36739485]
[1760025348506,0.40124665,121270.0,121260.0,0.27737485]
[1760025348731,0.16543665,121270.0,121260.0,0.36739485]
[1760025348949,0.40027665,121270.0,121260.0,0.36739485]
[1760025349168,0.52438408,121270.0,121260.0,0.11244]
[1760025349391,0.16493485,121260.0,121250.0,0.21424845]
[1760025349814,0.40537485,121260.0,121250.0,0.27619845]
[1760025350236,0.21805485,121260.0,121250.0,0.11125]
[1760025350442,0.16494845,121250.0,121240.0,0.3039696]
[1760025350661,0.16494845,121250.0,121240.0,0.3659196]
[1760025351796,0.21245485,121260.0,121250.0,0.16494845]
[1760025352048,0.45289485,121260.0,121250.0,0.22689845]
[1760025352273,0.00598,121260.0,121250.0,0.22689845]
[1760025352488,0.0005154,121270.0,121260.0,0.16493485]
[1760025352703,0.0005154,121270.0,121260.0,0.36383485]
[1760025353342,0.43743735,121270.0,121260.0,0.04693]
[1760025353556,0.27602665,121270.0,121250.0,0.04693]
[1760025353768,0.23488,121260.0,121250.0,0.2118746]
[1760025353978,0.39981485,121260.0,121250.0,0.1989]
[1760025354184,0.40162485,121260.0,121250.0,0.27382845]
[1760025354628,0.39981485,121260.0,121250.0,0.36384845]
[1760025354834,0.21343485,121260.0,121250.0,0.10888]
[1760025355042,0.44827485,121260.0,121250.0,0.10888]
[1760025355241,0.44827485,121260.0,121250.0,0.04693]
[1760025355482,0.44927485,121260.0,121250.0,0.10888]
[1760025355903,0.44927485,121260.0,121250.0,0.27382845]
[1760025356114,0.40077485,121260.0,121250.0,0.27382845]
[1760025356317,0.16593485,121260.0,121250.0,0.1989]
[1760025356741,0.45027485,121260.0,121250.0,0.10888]
[1760025356948,0.54007485,121260.0,121250.0,0.04693]
[1760025357359,0.16494845,121250.0,121240.0,0.3122177]
[1760025357762,0.16494845,121250.0,121240.0,0.3741677]
[1760025358333,0.53560845,121250.0,121240.0,0.00137755]
[1760025358537,0.2005569,121250.0,121240.0,0.06332755]
[1760025358779,0.2014469,121250.0,121240.0,0.11025755]
[1760025359185,0.2005569,121250.0,121240.0,0.11025755]
[1760025359361,0.2005569,121250.0,121240.0,0.20027755]
[1760025359878,0.40071845,121250.0,121240.0,0.11025755]
[1760025360205,0.16583845,121250.0,121240.0,0.11025755]
[1760025360444,0.40071845,121250.0,121240.0,0.11025755]
[1760025361178,0.39982845,121250.0,121240.0,0.11025755]
[1760025361381,0.39982845,121250.0,121240.0,0.20027755]
[1760025361576,0.39982845,121250.0,121240.0,0.11025755]
[1760025363182,0.24896051,121250.0,121240.0,0.00137755]
[1760025363401,0.55364384,121250.0,121240.0,0.00137755]
[1760025364958,0.89364384,121250.0,121240.0,0.00137755]
[1760025368144,0.68891574,121250.0,121240.0,0.00137755]
[1760025368378,0.92379574,121250.0,121240.0,0.00137755]
[1760025369533,0.92479574,121250.0,121240.0,0.00137755]
[1760025369761,0.68991574,121250.0,121240.0,0.00137755]
[1760025369986,1.35359574,121250.0,121240.0,0.00137755]
[1760025370205,1.35459574,121250.0,121240.0,0.00137755]
[1760025370414,1.35463574,121250.0,121240.0,0.00137755]
[1760025370831,0.69091574,121250.0,121240.0,0.00137755]
[1760025370986,1.28483241,121250.0,121240.0,0.00137755]
[1760025371537,1.04995241,121250.0,121240.0,0.00137755]
[1760025371743,1.28483241,121250.0,121240.0,0.00137755]
[1760025371945,0.62111241,121250.0,121240.0,0.00137755]
[1760025372178,1.28483241,121250.0,121240.0,0.00137755]
[1760025372357,1.04995241,121250.0,121240.0,0.00137755]
[1760025372565,1.36482921,121250.0,121240.0,0.00137755]
[1760025373342,0.93598921,121250.0,121240.0,0.00137755]
[1760025373554,0.70110921,121250.0,121240.0,0.00137755]
[1760025373753,1.36486921,121250.0,121240.0,0.00137755]
[1760025374306,0.70110921,121250.0,121240.0,0.00137755]
[1760025374444,1.36486921,121250.0,121240.0,0.00137755]
[1760025374642,1.12994921,121250.0,121240.0,0.00137755]
[1760025374875,1.36486921,121250.0,121240.0,0.00137755]
[1760025375237,1.12994921,121250.0,121240.0,0.00137755]
[1760025375443,1.36486921,121250.0,121240.0,0.00137755]
[1760025380147,0.70110921,121250.0,121240.0,0.00137755]
[1760025380388,1.36490921,121250.0,121240.0,0.00137755]
[1760025382382,1.12998921,121250.0,121240.0,0.00137755]
[1760025382818,1.36490921,121250.0,121240.0,0.00137755]
[1760025383014,1.38026778,121250.0,121240.0,0.00137755]
[1760025383220,1.14534778,121250.0,121240.0,0.00137755]
[1760025383515,1.15826778,121250.0,121240.0,0.00137755]
[1760025383695,0.62111241,121250.0,121240.0,0.00137755]
[1760025383915,0.25007051,121250.0,121230.0,0.04582]
[1760025384115,0.50503011,121190.0,121180.0,0.04582]
[1760025384332,0.16505735,121170.0,121160.0,0.1451]
[1760025384534,0.16505735,121170.0,121160.0,0.20990665]
[1760025384756,0.00948927,121170.0,121160.0,0.46168939]
[1760025384982,0.24836927,121170.0,121160.0,0.29661841]
[1760025385183,0.40393735,121170.0,121160.0,0.29661841]
[1760025385375,0.16505735,121170.0,121160.0,0.20990665]
[1760025385609,0.40393735,121170.0,121160.0,0.37497763]
[1760025385819,0.40393735,121170.0,121160.0,0.20990665]
[1760025385936,0.41313201,121170.0,121160.0,0.20990665]
[1760025386151,0.41317201,121170.0,121160.0,0.20990665]
[1760025386351,0.17425201,121170.0,121160.0,0.37497763]
[1760025386665,0.41313201,121170.0,121160.0,0.37497763]
[1760025387068,0.17425201,121170.0,121160.0,0.20990665]
[1760025387306,0.41309201,121170.0,121160.0,0.20990665]
[1760025387903,0.41309201,121170.0,121160.0,0.37497763]
[1760025388100,0.17425201,121170.0,121160.0,0.37497763]
[1760025388300,0.41309201,121170.0,121160.0,0.20990665]
[1760025388581,0.41305201,121170.0,121160.0,0.20990665]
[1760025388735,0.41305201,121170.0,121160.0,0.37497763]
[1760025389109,0.41301201,121170.0,121160.0,0.20990665]
[1760025389917,0.41350201,121170.0,121160.0,0.11062665]
[1760025390148,0.44543201,121170.0,121160.0,0.20990665]
[1760025390343,0.41301201,121170.0,121160.0,0.20990665]
[1760025391333,0.52677597,121170.0,121160.0,0.00050665]
[1760025391563,0.60840597,121170.0,121160.0,0.00050665]
[1760025392213,0.42373519,121170.0,121160.0,0.00050665]
[1760025392464,0.6517912,121170.0,121160.0,0.00050665]
[1760025392675,0.4131512,121170.0,121160.0,0.00050665]
[1760025392884,1.0809912,121170.0,121160.0,0.00050665]
[1760025393511,0.4131512,121170.0,121160.0,0.00050665]
[1760025393723,0.26037183,121170.0,121160.0,0.37497763]
[1760025393932,0.49917183,121170.0,121160.0,0.20990665]
[1760025394155,0.0858,121180.0,121170.0,0.16505735]
[1760025394368,0.50645443,121180.0,121170.0,0.2094]
[1760025394573,0.48972373,121180.0,121170.0,0.2094]
[1760025395188,0.20602161,121190.0,121170.0,0.37445735]
[1760025395413,0.50649443,121180.0,121170.0,0.11012]
[1760025395617,0.48972373,121180.0,121170.0,0.11012]
[1760025395820,0.48972373,121180.0,121170.0,0.2094]
[1760025396029,0.48972373,121180.0,121170.0,0.2130112]
[1760025396261,0.49913153,121180.0,121170.0,0.2130112]
[1760025396939,0.49913153,121180.0,121170.0,0.37806855]
[1760025397972,0.49913153,121180.0,121170.0,0.2130112]
[1760025398194,0.49913153,121180.0,121170.0,0.37806855]
[1760025398682,0.49913153,121180.0,121170.0,0.2130112]
[1760025398867,0.49913153,121180.0,121170.0,0.37806855]
[1760025399044,0.0094078,121180.0,121170.0,0.37806855]
[1760025399250,0.32456,121180.0,121170.0,0.37806855]
[1760025399430,0.333777,121180.0,121170.0,0.37806855]
[1760025400107,0.32456,121180.0,121170.0,0.37806855]
[1760025401624,0.3244,121180.0,121170.0,0.37806855]
[1760025404075,0.48944373,121180.0,121170.0,0.37806855]
[1760025406009,0.48916373,121180.0,121170.0,0.1137312]
[1760025406256,0.48965373,121180.0,121170.0,0.1137312]
[1760025406693,0.25084373,121180.0,121170.0,0.1137312]
[1760025406924,0.48916373,121180.0,121170.0,0.37806855]
[1760025408146,0.48716373,121180.0,121170.0,0.37806855]
[1760025408369,0.48716373,121180.0,121170.0,0.2130112]